[Event "46th Barbera del Valles Open-A 2024"]
[Site "Barbera del Valles"]
[Date "2024.07.09"]
[Round "5.1"]
[White "Diaz Perez, Michel Alejandro"]
[Black "Cuartas, Jaime Alexander"]
[Result "1/2-1/2"]
[ECO "D10"]
[WhiteElo "2486"]
[BlackElo "2519"]
[Annotator "RC"]
[PlyCount "136"]
[EventDate "2024.06.25"]
[EventType "swiss"]
[EventCountry "ESP"]
[SourceTitle "playchess.com"]
[Source "ChessBase"]
[SourceQuality "1"]
[TimeControl "5400+30"]

1. d4 {[%emt 0:00:49]} d5 {[%emt 0:00:06]} 2. c4 {[%emt 0:00:04]} c6 {[%emt 0:00:04]} 3. Nc3 {[%emt 0:00:09]} Nf6 {[%emt 0:00:04]} 4. e3 {[%emt 0:00:05]} Bf5 {[%emt 0:00:04]} 5. cxd5 {[%emt 0:00:14]} cxd5 {[%emt 0:00:06]} 6. Qb3 {[%emt 0:00:04]} Nc6 {[%emt 0:00:06]} 7. Qxb7 {[%emt 0:02:30]} Bd7 {[%emt 0:00:06]} 8. Qb3 {[%emt 0:00:05]} Rb8 {[%emt 0:00:03]} 9. Qd1 {[%emt 0:00:06]} e5 {[%emt 0:00:06]} 10. dxe5 {[%emt 0:00:18]} Nxe5 {[%emt 0:00:12]} 11. Be2 {[%emt 0:00:23]} Bd6 {[%emt 0:00:56]} 12. Nf3 {[%emt 0:00:13]} O-O {[%emt 0:00:09]} 13. O-O {[%emt 0:01:33]} Qc7 {[%emt 0:01:06]} 14. h3 {[%emt 0:01:37]} Nxf3+ {[%emt 0:00:48]} 15. Bxf3 {[%emt 0:00:05]} Rfd8 {[%emt 0:00:03]} 16. a4 {[%emt 0:13:38]} Qc8 {[%emt 0:07:53]} 17. Nb5 {[%emt 0:06:55]} Bxb5 {[%emt 0:14:07]} 18. axb5 {[%emt 0:00:09]} Rxb5 {[%emt 0:08:52]} 19. Rxa7 {[%emt 0:05:57]} Bh2+ {[%emt 0:03:41]} 20. Kh1 {[%emt 0:00:10]} Be5 {[%emt 0:00:29]} 21. Qa4 {[%emt 0:07:28]} Qb8 {[%emt 0:02:56]} 22. Ra8 {[%emt 0:02:16]} Qxa8 {[%emt 0:00:04]} 23. Qxb5 {[%emt 0:00:08]} Rb8 {[%emt 0:00:05]} 24. Qe2 {[%emt 0:00:54]} Qa2 {[%emt 0:02:37]} 25. Rd1 {[%emt 0:02:48]} Bxb2 {[%emt 0:05:48]} 26. Qc2 {[%emt 0:09:45]} h6 {[%emt 0:08:27]} 27. Qc7 {[%emt 0:09:27]} Qb3 {[%emt 0:06:09]} 28. Bxb2 {[%emt 0:02:11]} Qxb2 {[%emt 0:00:50]} 29. Bxd5 {[%emt 0:00:35]} Nxd5 {[%emt 0:00:23]} 30. Rxd5 {[%emt 0:00:01]} Rf8 {[%emt 0:01:30]} 31. Qf4 {[%emt 0:01:13]} Qf6 {[%emt 0:00:29]} 32. Qxf6 {[%emt 0:09:07]} gxf6 {[%emt 0:00:04]} 33. h4 {[%emt 0:00:07]} Ra8 {[%emt 0:00:04]} 34. Kh2 {[%emt 0:00:05]} Ra2 {[%emt 0:00:26]} 35. Kg3 {[%emt 0:00:03]} Kg7 {[%emt 0:00:08]} 36. Kf3 {[%emt 0:00:30]} Rb2 {[%emt 0:00:08]} 37. g3 {[%emt 0:00:34]} Ra2 {[%emt 0:00:07]} 38. e4 {[%emt 0:00:23]} Ra3+ {[%emt 0:00:20]} 39. Kf4 {[%emt 0:00:02]} Ra2 {[%emt 0:00:15]} 40. f3 {[%emt 0:00:02]} Ra3 {[%emt 0:00:07]} 41. Kg4 {[%emt 0:00:14]} Kg6 {[%emt 0:01:04]} 42. Rd6 {[%emt 0:00:06]} Kg7 {[%emt 0:00:10]} 43. h5 {[%emt 0:01:36]} Rb3 {[%emt 0:01:29]} 44. Kf4 {[%emt 0:02:23]} Ra3 {[%emt 0:00:21]} 45. Rd5 {[%emt 0:00:06]} Rb3 {[%emt 0:00:08]} 46. g4 {[%emt 0:02:18]} Ra3 {[%emt 0:01:24]} 47. e5 {[%emt 0:01:03]} fxe5+ {[%emt 0:00:12]} 48. Rxe5 {[%emt 0:00:01]} Rb3 {[%emt 0:00:10]} 49. Rd5 {[%emt 0:00:10]} Ra3 {[%emt 0:00:24]} 50. Ke4 {[%emt 0:00:06]} Rb3 {[%emt 0:00:41]} 51. Rd3 {[%emt 0:01:18]} Rb5 {[%emt 0:00:36]} 52. f4 {[%emt 0:00:40]} Ra5 {[%emt 0:00:54]} 53. Rd5 {[%emt 0:00:09]} Ra4+ {[%emt 0:01:06]} 54. Kf5 {[%emt 0:00:04]} Ra1 {[%emt 0:00:04]} 55. Rc5 {[%emt 0:01:46]} Rb1 {[%emt 0:00:13]} 56. Ke5 {[%emt 0:00:30]} Re1+ {[%emt 0:00:31]} 57. Kd6 {[%emt 0:00:56]} Re6+ {[%emt 0:02:23]} 58. Kd7 {[%emt 0:03:22]} Re4 {[%emt 0:00:09]} 59. Rf5 {[%emt 0:00:09]} f6 {[%emt 0:01:02]} 60. Kd6 {[%emt 0:00:59]} Rd4+ {[%emt 0:02:13]} 61. Kc5 {[%emt 0:01:41]} Re4 {[%emt 0:00:35]} 62. Kd5 {[%emt 0:00:39]} Ra4 {[%emt 0:00:10]} 63. g5 {[%emt 0:02:08]} fxg5 {[%emt 0:00:27]} 64. fxg5 {[%emt 0:00:01]} hxg5 {[%emt 0:00:18]} 65. Rxg5+ {[%emt 0:00:02]} Kh6 {[%emt 0:00:23]} 66. Re5 {[%emt 0:00:05]} Ra5+ {[%emt 0:00:05]} 67. Ke4 {[%emt 0:00:02]} Rxe5+ {[%emt 0:00:07]} 68. Kxe5 {[%emt 0:00:03]} Kxh5 {[%emt 0:00:04]} 1/2-1/2

[Event "46th Barbera del Valles Open-A 2024"]
[Site "Barbera del Valles"]
[Date "2024.07.09"]
[Round "5.2"]
[White "Salinas Tomas, Daniel"]
[Black "Alsina Leal, Daniel"]
[Result "1-0"]
[ECO "E05"]
[WhiteElo "2355"]
[BlackElo "2512"]
[Annotator "RC"]
[PlyCount "83"]
[EventDate "2024.06.25"]
[EventType "swiss"]
[EventCountry "ESP"]
[SourceTitle "playchess.com"]
[Source "ChessBase"]
[SourceQuality "1"]
[TimeControl "5400+30"]

1. d4 {[%emt 0:00:06]} Nf6 {[%emt 0:00:13]} 2. c4 {[%emt 0:00:05]} e6 {[%emt 0:00:09]} 3. g3 {[%emt 0:00:04]} d5 {[%emt 0:00:23]} 4. Nf3 {[%emt 0:00:06]} Be7 {[%emt 0:00:13]} 5. Bg2 {[%emt 0:00:05]} O-O {[%emt 0:00:14]} 6. O-O {[%emt 0:00:05]} dxc4 {[%emt 0:00:16]} 7. Qc2 {[%emt 0:00:09]} a6 {[%emt 0:00:32]} 8. a4 {[%emt 0:01:31]} Bd7 {[%emt 0:00:55]} 9. Qxc4 {[%emt 0:00:05]} Bc6 {[%emt 0:00:08]} 10. Bg5 {[%emt 0:00:05]} Nbd7 {[%emt 0:01:23]} 11. Nc3 {[%emt 0:00:42]} a5 {[%emt 0:01:09]} 12. Rfd1 {[%emt 0:01:56]} h6 {[%emt 0:00:58]} 13. Bxf6 {[%emt 0:01:58]} Nxf6 {[%emt 0:00:11]} 14. Rac1 {[%emt 0:01:34]} Bb4 {[%emt 0:02:47]} 15. Ne5 {[%emt 0:01:30]} Bxg2 {[%emt 0:00:45]} 16. Kxg2 {[%emt 0:00:06]} c6 {[%emt 0:00:41]} 17. e3 {[%emt 0:20:10]} Qe7 {[%emt 0:05:52]} 18. Nd3 {[%emt 0:01:51]} Rfd8 {[%emt 0:14:21]} 19. Ne2 {[%emt 0:01:11]} Bd6 {[%emt 0:04:54]} 20. Nef4 {[%emt 0:05:28]} g6 {[%emt 0:12:34]} 21. Nc5 {[%emt 0:03:31]} Bxf4 {[%emt 0:07:00]} 22. gxf4 {[%emt 0:00:19]} Nd5 {[%emt 0:05:01]} 23. Qe2 {[%emt 0:01:16]} Rac8 {[%emt 0:19:58]} 24. Nd3 {[%emt 0:03:11]} Kg7 {[%emt 0:00:46]} 25. Kh1 {[%emt 0:00:10]} Nb4 {[%emt 0:08:29]} 26. Ne5 {[%emt 0:08:19]} c5 {[%emt 0:00:32]} 27. Qb5 {[%emt 0:02:58]} cxd4 {[%emt 0:01:30]} 28. Rxc8 {[%emt 0:01:11]} Rxc8 {[%emt 0:00:08]} 29. Rxd4 {[%emt 0:00:08]} Nd5 {[%emt 0:00:55]} 30. Qxa5 {[%emt 0:08:07]} Rc1+ {[%emt 0:00:35]} 31. Kg2 {[%emt 0:00:10]} Rc2 {[%emt 0:00:21]} 32. Qe1 {[%emt 0:12:30]} Rxb2 {[%emt 0:03:30]} 33. Qa1 {[%emt 0:04:33]} Rc2 {[%emt 0:02:17]} 34. Kg3 {[%emt 0:01:21]} f6 {[%emt 0:01:50]} 35. Nf3 {[%emt 0:03:35]} Qc7 {[%emt 0:01:51]} 36. h4 {[%emt 0:07:56]} Nc3 {[%emt 0:02:11]} 37. Kg2 {[%emt 0:00:58]} Ra2 {[%emt 0:00:25]} 38. Qf1 {[%emt 0:01:58]} Rxa4 {[%emt 0:01:28]} 39. Rxa4 {[%emt 0:00:59]} Nxa4 {[%emt 0:02:35]} 40. Nd4 {[%emt 0:00:01]} Qd7 {[%emt 0:00:00]} 41. Qa1 {[%emt 0:03:09]} Nc5 {[%emt 0:00:00]} 42. Qa7 {[%emt 0:00:01]} 1-0

[Event "46th Barbera del Valles Open-A 2024"]
[Site "Barbera del Valles"]
[Date "2024.07.09"]
[Round "5.3"]
[White "Escobar Forero, Alder"]
[Black "Bakshi, Rutuja"]
[Result "1-0"]
[ECO "C13"]
[WhiteElo "2426"]
[BlackElo "2058"]
[Annotator "RC"]
[PlyCount "71"]
[EventDate "2024.06.25"]
[EventType "swiss"]
[EventCountry "ESP"]
[SourceTitle "playchess.com"]
[Source "ChessBase"]
[SourceQuality "1"]
[TimeControl "5400+30"]

1. e4 {[%emt 0:00:03]} e6 {[%emt 0:00:02]} 2. d4 {[%emt 0:00:06]} d5 {[%emt 0:00:05]} 3. Nc3 {[%emt 0:00:04]} Nf6 {[%emt 0:00:04]} 4. Bg5 {[%emt 0:00:19]} dxe4 {[%emt 0:00:07]} 5. Nxe4 {[%emt 0:00:03]} Be7 {[%emt 0:00:07]} 6. Bxf6 {[%emt 0:00:08]} gxf6 {[%emt 0:00:06]} 7. Nf3 {[%emt 0:00:04]} f5 {[%emt 0:00:15]} 8. Nc3 {[%emt 0:00:05]} a6 {[%emt 0:00:25]} 9. g3 {[%emt 0:00:05]} b5 {[%emt 0:01:09]} 10. Bg2 {[%emt 0:00:08]} Bb7 {[%emt 0:00:03]} 11. O-O {[%emt 0:00:05]} O-O {[%emt 0:01:02]} 12. Ne5 {[%emt 0:07:49]} Bxg2 {[%emt 0:06:29]} 13. Kxg2 {[%emt 0:00:12]} c5 {[%emt 0:04:35]} 14. d5 {[%emt 0:19:18]} Qc7 {[%emt 0:12:04]} 15. Re1 {[%emt 0:03:41]} Bf6 {[%emt 0:16:10]} 16. Nd3 {[%emt 0:20:40]} Re8 {[%emt 0:26:08]} 17. Qf3 {[%emt 0:07:37]} Bxc3 {[%emt 0:14:17]} 18. bxc3 {[%emt 0:00:25]} Nd7 {[%emt 0:00:38]} 19. dxe6 {[%emt 0:39:08]} fxe6 {[%emt 0:00:31]} 20. Rxe6 {[%emt 0:00:00]} Rxe6 {[%emt 0:01:30]} 21. Qxa8+ {[%emt 0:00:00]} Kf7 {[%emt 0:01:30]} 22. Rd1 {[%emt 0:00:00]} Qc6+ {[%emt 0:03:49]} 23. Qxc6 {[%emt 0:00:00]} Rxc6 {[%emt 0:00:03]} 24. Nf4 {[%emt 0:00:00]} Nf6 {[%emt 0:01:17]} 25. f3 {[%emt 0:00:00]} Ke7 {[%emt 0:02:07]} 26. Re1+ {[%emt 0:00:00]} Kf7 {[%emt 0:00:34]} 27. Rd1 {[%emt 0:00:00]} Ke7 {[%emt 0:00:22]} 28. Re1+ {[%emt 0:00:00]} Kf7 {[%emt 0:00:02]} 29. Re5 {[%emt 0:00:00]} Rd6 {[%emt 0:00:10]} 30. Rxf5 {[%emt 0:00:00]} Rd2+ {[%emt 0:00:35]} 31. Kh3 {[%emt 0:00:00]} Rxc2 {[%emt 0:01:19]} 32. Nh5 {[%emt 0:00:00]} Kg6 {[%emt 0:00:11]} 33. Rxf6+ {[%emt 0:00:00]} Kxh5 {[%emt 0:00:03]} 34. Rxa6 {[%emt 0:00:00]} Rxc3 {[%emt 0:04:07]} 35. g4+ {[%emt 0:00:00]} Kg5 {[%emt 0:00:47]} 36. Kg3 {[%emt 0:08:30]} 1-0

[Event "46th Barbera del Valles Open-A 2024"]
[Site "Barbera del Valles"]
[Date "2024.07.09"]
[Round "5.4"]
[White "Reyan"]
[Black "Solodovnichenko, Yuri"]
[Result "0-1"]
[ECO "B30"]
[WhiteElo "2022"]
[BlackElo "2481"]
[Annotator "RC"]
[PlyCount "62"]
[EventDate "2024.06.25"]
[EventType "swiss"]
[EventCountry "ESP"]
[SourceTitle "playchess.com"]
[Source "ChessBase"]
[SourceQuality "1"]
[TimeControl "5400+30"]

1. e4 {[%emt 0:00:02]} c5 {[%emt 0:00:07]} 2. Nc3 {[%emt 0:00:04]} Nc6 {[%emt 0:00:12]} 3. Bb5 {[%emt 0:00:07]} Nd4 {[%emt 0:00:21]} 4. Nf3 {[%emt 0:00:07]} e6 {[%emt 0:00:12]} 5. O-O {[%emt 0:00:20]} a6 {[%emt 0:00:05]} 6. Bd3 {[%emt 0:00:11]} Nc6 {[%emt 0:00:09]} 7. b3 {[%emt 0:00:27]} g6 {[%emt 0:00:31]} 8. e5 {[%emt 0:13:08]} Bg7 {[%emt 0:00:11]} 9. Re1 {[%emt 0:00:15]} f6 {[%emt 0:00:12]} 10. exf6 {[%emt 0:16:31]} Nxf6 {[%emt 0:00:10]} 11. Bb2 {[%emt 0:00:25]} O-O {[%emt 0:00:48]} 12. Bf1 {[%emt 0:01:49]} Qc7 {[%emt 0:25:31]} 13. Ne2 {[%emt 0:16:19]} Ng4 {[%emt 0:11:14]} 14. Bxg7 {[%emt 0:02:35]} Rxf3 {[%emt 0:00:45]} 15. Ng3 {[%emt 0:03:03]} Rf4 {[%emt 0:00:07]} 16. Bb2 {[%emt 0:05:41]} Nxf2 {[%emt 0:00:07]} 17. Qe2 {[%emt 0:00:34]} Ng4 {[%emt 0:00:08]} 18. h3 {[%emt 0:04:58]} Nd4 {[%emt 0:02:47]} 19. Bxd4 {[%emt 0:05:43]} Rxd4 {[%emt 0:00:14]} 20. Qf3 {[%emt 0:00:19]} Rf4 {[%emt 0:02:06]} 21. Qc3 {[%emt 0:03:57]} Nf6 {[%emt 0:01:42]} 22. Bc4 {[%emt 0:01:52]} b5 {[%emt 0:03:32]} 23. Ne2 {[%emt 0:00:45]} Rf5 {[%emt 0:04:55]} 24. Ng3 {[%emt 0:01:29]} Rf4 {[%emt 0:05:39]} 25. Ne2 {[%emt 0:00:32]} Ne4 {[%emt 0:05:03]} 26. Qe3 {[%emt 0:02:23]} Rh4 {[%emt 0:00:10]} 27. Bd3 {[%emt 0:01:58]} Bb7 {[%emt 0:01:18]} 28. g3 {[%emt 0:01:03]} Nxd2 {[%emt 0:00:24]} 29. Qxd2 {[%emt 0:09:35]} Qc6 {[%emt 0:01:35]} 30. Nf4 {[%emt 0:06:43]} Qh1+ {[%emt 0:00:17]} 31. Kf2 {[%emt 0:00:05]} Qh2+ {[%emt 0:00:08]} 0-1

[Event "46th Barbera del Valles Open-A 2024"]
[Site "Barbera del Valles"]
[Date "2024.07.09"]
[Round "5.5"]
[White "Talwalkar, Vedant"]
[Black "Kaustuv, Kundu"]
[Result "0-1"]
[ECO "B35"]
[WhiteElo "2114"]
[BlackElo "2403"]
[Annotator "RC"]
[PlyCount "92"]
[EventDate "2024.06.25"]
[EventType "swiss"]
[EventCountry "ESP"]
[SourceTitle "playchess.com"]
[Source "ChessBase"]
[SourceQuality "1"]
[TimeControl "5400+30"]

1. e4 {[%emt 0:00:03]} c5 {[%emt 0:02:44]} 2. Nf3 {[%emt 0:00:06]} g6 {[%emt 0:00:08]} 3. d4 {[%emt 0:00:08]} cxd4 {[%emt 0:00:05]} 4. Nxd4 {[%emt 0:00:08]} Bg7 {[%emt 0:00:04]} 5. Nc3 {[%emt 0:00:18]} Nc6 {[%emt 0:00:06]} 6. Be3 {[%emt 0:00:06]} Nf6 {[%emt 0:00:05]} 7. Bc4 {[%emt 0:00:08]} O-O {[%emt 0:00:07]} 8. Bb3 {[%emt 0:00:07]} Re8 {[%emt 0:00:21]} 9. Nxc6 {[%emt 0:07:49]} dxc6 {[%emt 0:00:40]} 10. h3 {[%emt 0:00:44]} Qc7 {[%emt 0:00:54]} 11. O-O {[%emt 0:00:29]} b5 {[%emt 0:00:39]} 12. a3 {[%emt 0:01:39]} a5 {[%emt 0:03:02]} 13. f4 {[%emt 0:04:48]} Ba6 {[%emt 0:04:54]} 14. e5 {[%emt 0:18:28]} b4 {[%emt 0:00:44]} 15. Ne2 {[%emt 0:00:34]} a4 {[%emt 0:09:33]} 16. Ba2 {[%emt 0:01:05]} bxa3 {[%emt 0:02:05]} 17. bxa3 {[%emt 0:03:09]} Nd5 {[%emt 0:00:24]} 18. Bxd5 {[%emt 0:01:07]} cxd5 {[%emt 0:00:05]} 19. Rf3 {[%emt 0:00:48]} Bxe2 {[%emt 0:00:25]} 20. Qxe2 {[%emt 0:00:11]} Rec8 {[%emt 0:04:42]} 21. Rc1 {[%emt 0:00:30]} Qc4 {[%emt 0:00:23]} 22. Qd2 {[%emt 0:02:48]} e6 {[%emt 0:15:01]} 23. Bd4 {[%emt 0:00:48]} Bf8 {[%emt 0:00:49]} 24. Rc3 {[%emt 0:09:47]} Qa2 {[%emt 0:01:43]} 25. Kh2 {[%emt 0:07:31]} Rxc3 {[%emt 0:00:27]} 26. Bxc3 {[%emt 0:00:30]} Qxa3 {[%emt 0:00:38]} 27. f5 {[%emt 0:00:57]} exf5 {[%emt 0:03:51]} 28. Re1 {[%emt 0:02:23]} Rc8 {[%emt 0:05:44]} 29. Ba1 {[%emt 0:03:19]} Bb4 {[%emt 0:01:58]} 30. c3 {[%emt 0:00:21]} Bxc3 {[%emt 0:00:20]} 31. Qe3 {[%emt 0:01:03]} Bb4 {[%emt 0:01:29]} 32. Qxa3 {[%emt 0:00:11]} Bxa3 {[%emt 0:00:04]} 33. Re3 {[%emt 0:00:15]} Bc1 {[%emt 0:01:37]} 34. Rd3 {[%emt 0:00:20]} a3 {[%emt 0:00:32]} 35. Rxd5 {[%emt 0:00:06]} Rb8 {[%emt 0:02:11]} 36. Rd1 {[%emt 0:00:13]} Bb2 {[%emt 0:00:12]} 37. Bxb2 {[%emt 0:00:09]} axb2 {[%emt 0:00:05]} 38. Rb1 {[%emt 0:00:04]} Kf8 {[%emt 0:00:04]} 39. Kg3 {[%emt 0:00:03]} Ke7 {[%emt 0:00:05]} 40. Kf4 {[%emt 0:00:03]} Ke6 {[%emt 0:00:04]} 41. g3 {[%emt 0:00:06]} Rb4+ {[%emt 0:00:08]} 42. Ke3 {[%emt 0:00:04]} Kxe5 {[%emt 0:00:46]} 43. Kd2 {[%emt 0:00:03]} Rb7 {[%emt 0:00:00]} 44. Kc2 {[%emt 0:00:04]} Ke4 {[%emt 0:00:04]} 45. Rxb2 {[%emt 0:00:05]} Rxb2+ {[%emt 0:00:04]} 46. Kxb2 {[%emt 0:00:03]} Kf3 {[%emt 0:00:04]} 0-1

[Event "46th Barbera del Valles Open-A 2024"]
[Site "Barbera del Valles"]
[Date "2024.07.09"]
[Round "5.6"]
[White "Utsab Chatterjee"]
[Black "Lau, Lut Yin Luke"]
[Result "1/2-1/2"]
[ECO "C78"]
[WhiteElo "2287"]
[BlackElo "2120"]
[Annotator "RC"]
[PlyCount "43"]
[EventDate "2024.06.25"]
[EventType "swiss"]
[EventCountry "ESP"]
[SourceTitle "playchess.com"]
[Source "ChessBase"]
[SourceQuality "1"]
[TimeControl "5400+30"]

1. e4 {[%emt 0:00:39]} e5 {[%emt 0:00:24]} 2. Nf3 {[%emt 0:00:20]} Nc6 {[%emt 0:00:26]} 3. Bb5 {[%emt 0:00:15]} a6 {[%emt 0:00:09]} 4. Ba4 {[%emt 0:00:06]} Nf6 {[%emt 0:00:10]} 5. O-O {[%emt 0:00:31]} b5 {[%emt 0:00:16]} 6. Bb3 {[%emt 0:00:05]} Bc5 {[%emt 0:00:06]} 7. c3 {[%emt 0:00:33]} d6 {[%emt 0:00:14]} 8. d4 {[%emt 0:00:10]} Bb6 {[%emt 0:00:12]} 9. Be3 {[%emt 0:00:08]} O-O {[%emt 0:00:30]} 10. Nbd2 {[%emt 0:00:13]} Re8 {[%emt 0:00:38]} 11. h3 {[%emt 0:00:14]} h6 {[%emt 0:00:24]} 12. Re1 {[%emt 0:04:54]} exd4 {[%emt 0:00:32]} 13. cxd4 {[%emt 0:00:13]} Nb4 {[%emt 0:00:10]} 14. Qb1 {[%emt 0:02:49]} c5 {[%emt 0:00:37]} 15. a3 {[%emt 0:06:52]} Nc6 {[%emt 0:00:05]} 16. e5 {[%emt 0:00:26]} cxd4 {[%emt 0:12:31]} 17. Bxh6 {[%emt 0:00:26]} Nxe5 {[%emt 0:00:18]} 18. Nxe5 {[%emt 0:08:50]} Rxe5 {[%emt 0:00:02]} 19. Rxe5 {[%emt 0:00:33]} dxe5 {[%emt 0:00:06]} 20. Qg6 {[%emt 0:01:59]} Qf8 {[%emt 0:00:08]} 21. Nf3 {[%emt 0:00:23]} e4 {[%emt 0:17:25]} 22. Ng5 {[%emt 0:17:19]} 1/2-1/2

[Event "46th Barbera del Valles Open-A 2024"]
[Site "Barbera del Valles"]
[Date "2024.07.09"]
[Round "5.7"]
[White "Vedant Rupeshbhai Varasada"]
[Black "Bogdanov, Artyom"]
[Result "1/2-1/2"]
[ECO "C45"]
[WhiteElo "1860"]
[BlackElo "2265"]
[Annotator "RC"]
[PlyCount "119"]
[EventDate "2024.06.25"]
[EventType "swiss"]
[EventCountry "ESP"]
[SourceTitle "playchess.com"]
[Source "ChessBase"]
[SourceQuality "1"]
[TimeControl "5400+30"]

1. e4 {[%emt 0:00:04]} e5 {[%emt 0:00:05]} 2. Nf3 {[%emt 0:00:05]} Nc6 {[%emt 0:00:03]} 3. d4 {[%emt 0:00:05]} exd4 {[%emt 0:00:04]} 4. Nxd4 {[%emt 0:00:05]} Nf6 {[%emt 0:00:03]} 5. Nxc6 {[%emt 0:00:05]} bxc6 {[%emt 0:00:03]} 6. e5 {[%emt 0:00:07]} Qe7 {[%emt 0:00:03]} 7. Qe2 {[%emt 0:00:08]} Nd5 {[%emt 0:00:03]} 8. c4 {[%emt 0:00:13]} Ba6 {[%emt 0:00:04]} 9. Nd2 {[%emt 0:00:24]} g6 {[%emt 0:00:08]} 10. Nf3 {[%emt 0:00:19]} Bg7 {[%emt 0:00:45]} 11. Bg5 {[%emt 0:00:06]} f6 {[%emt 0:00:46]} 12. exf6 {[%emt 0:00:06]} Qxe2+ {[%emt 0:00:10]} 13. Bxe2 {[%emt 0:00:06]} Nxf6 {[%emt 0:00:04]} 14. O-O-O {[%emt 0:03:18]} O-O-O {[%emt 0:00:53]} 15. Rhe1 {[%emt 0:29:01]} Rde8 {[%emt 0:00:17]} 16. h3 {[%emt 0:02:26]} c5 {[%emt 0:12:14]} 17. Bd3 {[%emt 0:07:30]} Bb7 {[%emt 0:09:42]} 18. Rxe8+ {[%emt 0:11:16]} Rxe8 {[%emt 0:00:33]} 19. Re1 {[%emt 0:00:11]} Rxe1+ {[%emt 0:10:20]} 20. Nxe1 {[%emt 0:00:59]} Ne4 {[%emt 0:03:05]} 21. Be3 {[%emt 0:01:24]} d6 {[%emt 0:04:43]} 22. f3 {[%emt 0:17:03]} Ng3 {[%emt 0:00:45]} 23. Bf4 {[%emt 0:00:34]} Nh5 {[%emt 0:04:30]} 24. Bh2 {[%emt 0:05:57]} Kd7 {[%emt 0:05:56]} 25. Kc2 {[%emt 0:00:10]} Bh6 {[%emt 0:02:21]} 26. Bf1 {[%emt 0:00:07]} Be3 {[%emt 0:10:01]} 27. Kd3 {[%emt 0:04:52]} Bf2 {[%emt 0:02:28]} 28. Nc2 {[%emt 0:04:47]} Ng3 {[%emt 0:04:45]} 29. Be2 {[%emt 0:00:24]} h5 {[%emt 0:07:56]} 30. Ne3 {[%emt 0:03:29]} Nxe2 {[%emt 0:01:56]} 31. Kxe2 {[%emt 0:00:01]} Bh4 {[%emt 0:00:07]} 32. g4 {[%emt 0:01:57]} Ke6 {[%emt 0:00:56]} 33. b3 {[%emt 0:02:50]} Bf6 {[%emt 0:00:26]} 34. f4 {[%emt 0:01:06]} hxg4 {[%emt 0:00:22]} 35. hxg4 {[%emt 0:00:04]} Be4 {[%emt 0:00:22]} 36. Kd2 {[%emt 0:04:02]} Bd4 {[%emt 0:01:57]} 37. Bg3 {[%emt 0:01:02]} Bb1 {[%emt 0:01:29]} 38. Nd5 {[%emt 0:00:08]} Bxa2 {[%emt 0:05:04]} 39. Nxc7+ {[%emt 0:00:07]} Kd7 {[%emt 0:00:25]} 40. Nb5 {[%emt 0:00:03]} Bxb3 {[%emt 0:05:38]} 41. Nxd4 {[%emt 0:00:05]} cxd4 {[%emt 0:00:06]} 42. Kd3 {[%emt 0:00:04]} Bd1 {[%emt 0:00:10]} 43. Kxd4 {[%emt 0:00:20]} Bxg4 {[%emt 0:00:12]} 44. c5 {[%emt 0:00:04]} dxc5+ {[%emt 0:00:13]} 45. Kxc5 {[%emt 0:00:04]} Ke6 {[%emt 0:00:09]} 46. Bh4 {[%emt 0:00:03]} Be2 {[%emt 0:00:11]} 47. Kb4 {[%emt 0:00:04]} Kd5 {[%emt 0:00:17]} 48. Bg5 {[%emt 0:00:05]} a6 {[%emt 0:00:21]} 49. Bh6 {[%emt 0:00:05]} Kc6 {[%emt 0:00:04]} 50. Ka5 {[%emt 0:00:04]} Bb5 {[%emt 0:00:14]} 51. Bg5 {[%emt 0:00:04]} Kd5 {[%emt 0:00:10]} 52. Bh6 {[%emt 0:00:05]} Ke4 {[%emt 0:00:04]} 53. Bg5 {[%emt 0:00:04]} Kf5 {[%emt 0:00:03]} 54. Bh6 {[%emt 0:00:05]} Kg4 {[%emt 0:00:03]} 55. Bg5 {[%emt 0:00:04]} Kh5 {[%emt 0:00:04]} 56. Kb4 {[%emt 0:00:05]} Kg4 {[%emt 0:00:07]} 57. Ka5 {[%emt 0:00:03]} Kh5 {[%emt 0:00:04]} 58. Kb4 {[%emt 0:00:05]} Kg4 {[%emt 0:00:03]} 59. Ka5 {[%emt 0:00:02]} Kh5 {[%emt 0:00:02]} 60. Kb4 {[%emt 0:00:04]} 1/2-1/2

[Event "46th Barbera del Valles Open-A 2024"]
[Site "Barbera del Valles"]
[Date "2024.07.09"]
[Round "5.8"]
[White "Fanninger, Leon"]
[Black "Barath Kalyan M"]
[Result "1-0"]
[ECO "E65"]
[WhiteElo "2186"]
[BlackElo "2086"]
[Annotator "RC"]
[PlyCount "103"]
[EventDate "2024.06.25"]
[EventType "swiss"]
[EventCountry "ESP"]
[SourceTitle "playchess.com"]
[Source "ChessBase"]
[SourceQuality "1"]
[TimeControl "5400+30"]

1. c4 {[%emt 0:02:16]} Nf6 {[%emt 0:00:18]} 2. Nf3 {[%emt 0:00:50]} g6 {[%emt 0:00:12]} 3. d4 {[%emt 0:00:48]} Bg7 {[%emt 0:00:07]} 4. g3 {[%emt 0:00:05]} O-O {[%emt 0:00:07]} 5. Bg2 {[%emt 0:00:04]} d6 {[%emt 0:00:06]} 6. Nc3 {[%emt 0:00:17]} c5 {[%emt 0:03:01]} 7. O-O {[%emt 0:00:12]} Nc6 {[%emt 0:00:19]} 8. dxc5 {[%emt 0:00:10]} dxc5 {[%emt 0:00:08]} 9. Bf4 {[%emt 0:00:04]} Be6 {[%emt 0:03:27]} 10. Ne5 {[%emt 0:02:12]} Na5 {[%emt 0:11:56]} 11. Nd3 {[%emt 1:03:42]} Rc8 {[%emt 0:01:33]} 12. b3 {[%emt 0:00:37]} b6 {[%emt 0:07:16]} 13. Qc1 {[%emt 0:00:36]} Nc6 {[%emt 0:06:50]} 14. Rd1 {[%emt 0:01:20]} Nd7 {[%emt 0:01:00]} 15. Bh6 {[%emt 0:01:11]} Bf5 {[%emt 0:10:32]} 16. Bxg7 {[%emt 0:11:42]} Kxg7 {[%emt 0:00:02]} 17. Qb2 {[%emt 0:02:57]} Kg8 {[%emt 0:00:46]} 18. Nf4 {[%emt 0:00:29]} g5 {[%emt 0:02:26]} 19. Nh3 {[%emt 0:02:13]} h6 {[%emt 0:00:23]} 20. f4 {[%emt 0:00:20]} e6 {[%emt 0:03:21]} 21. fxg5 {[%emt 0:02:07]} Bxh3 {[%emt 0:02:46]} 22. Bxh3 {[%emt 0:00:10]} hxg5 {[%emt 0:00:11]} 23. Ne4 {[%emt 0:02:40]} f5 {[%emt 0:00:18]} 24. Qd2 {[%emt 0:02:40]} Nd4 {[%emt 0:00:43]} 25. Qxg5+ {[%emt 0:01:10]} Qxg5 {[%emt 0:00:17]} 26. Nxg5 {[%emt 0:00:01]} Nxe2+ {[%emt 0:00:18]} 27. Kf2 {[%emt 0:00:29]} Nd4 {[%emt 0:00:18]} 28. Nxe6 {[%emt 0:00:42]} Nxe6 {[%emt 0:05:10]} 29. Rxd7 {[%emt 0:00:01]} Rc7 {[%emt 0:02:54]} 30. Rxc7 {[%emt 0:00:37]} Nxc7 {[%emt 0:00:01]} 31. Re1 {[%emt 0:01:54]} Rf7 {[%emt 0:01:03]} 32. Re5 {[%emt 0:00:28]} f4 {[%emt 0:00:11]} 33. g4 {[%emt 0:01:17]} Rd7 {[%emt 0:00:31]} 34. Bg2 {[%emt 0:00:34]} Rd2+ {[%emt 0:06:58]} 35. Re2 {[%emt 0:00:05]} Rd4 {[%emt 0:01:25]} 36. Re7 {[%emt 0:00:55]} Na6 {[%emt 0:00:32]} 37. a3 {[%emt 0:00:33]} Rd2+ {[%emt 0:01:29]} 38. Kf1 {[%emt 0:00:30]} Kf8 {[%emt 0:03:01]} 39. Rxa7 {[%emt 0:00:06]} Nb8 {[%emt 0:00:01]} 40. Bd5 {[%emt 0:00:52]} Rb2 {[%emt 0:03:36]} 41. Ra8 {[%emt 0:00:07]} Rxb3 {[%emt 0:25:27]} 42. Rxb8+ {[%emt 0:00:01]} Ke7 {[%emt 0:00:00]} 43. g5 {[%emt 0:00:49]} Rb2 {[%emt 0:00:00]} 44. h4 {[%emt 0:00:47]} Kd6 {[%emt 0:00:00]} 45. g6 {[%emt 0:00:23]} Ke5 {[%emt 0:00:00]} 46. g7 {[%emt 0:00:34]} Rb1+ {[%emt 0:00:00]} 47. Kf2 {[%emt 0:00:30]} Rb2+ {[%emt 0:00:00]} 48. Kg1 {[%emt 0:00:33]} Rb1+ {[%emt 0:00:00]} 49. Kh2 {[%emt 0:00:18]} Rb2+ {[%emt 0:00:00]} 50. Bg2 {[%emt 0:00:07]} f3 {[%emt 0:00:00]} 51. g8=Q {[%emt 0:00:13]} fxg2 {[%emt 0:00:00]} 52. Kg1 {[%emt 0:00:21]} 1-0